Workbook

Sheet 2018
A1: 2018年度新能源汽车推广应用补助资金清算审核车辆信息表
A2: 地区 | B2: 序号 | C2: 车辆生产企业 | D2: 车辆型号 | E2: 申报推广数 （辆） | F2: 申请补助标准 （万元） | G2: 申请清算资金 （万元） | H2: 核定推广数 （辆） | I2: 核定补助标准 （万元） | J2: 应清算补助资金 （万元） | K2: 按整车企业取整后补助资金（万元） | L2: 核减原因 | M2: 此前待扣回预拨资金（万元） | N2: 此次扣回预拨资金（万元） | O2: 扣回相应预拨资金后剩余资金（万元）
A3: 总计 | E3: 58961 | G3: 282637.6056 | H3: 37658 | J3: 206039.2981 | K3: =SUM(K4:K946)/2 -> 206045 | M3: =SUM(M4:M946)/2 -> 445203 | N3: =SUM(N4:N946)/2 -> 67717 | O3: =SUM(O4:O946)/2 -> 138328
A4: 北京市 | B4: 合计 | E4: 19392 | G4: 69925.4496 | H4: 3524 | J4: 22000.4196 | K4: =SUM(K5:K34) -> 22000 | M4: =SUM(M5:M34) -> 1710 | N4: =SUM(N5:N34) -> 1710 | O4: =SUM(O5:O34) -> 20290
B5: 1 | C5: 北京北方华德尼奥普兰客车股份有限公司 | D5: 小计 | E5: 434 | G5: 9324.4336 | H5: 434 | J5: 9324.4336 | K5: =ROUND(J5,0) -> 9324 | M5: 0 | N5: =M5 -> 0 | O5: =K5-N5 -> 9324
D6: BFC6109GBEV2 | E6: 20 | F6: 20.9018 | G6: =E6*F6 -> 418.036 | H6: 20 | I6: 20.9018 | J6: =H6*I6 -> 418.036
D7: BFC6109GBEV5 | E7: 400 | F7: 21.78 | G7: =E7*F7 -> 8712 | H7: 400 | I7: 21.78 | J7: =H7*I7 -> 8712
D8: BFC6809GBEV5 | E8: 10 | F8: 14 | G8: =E8*F8 -> 140 | H8: 10 | I8: 14 | J8: =H8*I8 -> 140
D9: BFC6809GBEV9 | E9: 4 | F9: 13.5994 | G9: =E9*F9 -> 54.3976 | H9: 4 | I9: 13.5994 | J9: =H9*I9 -> 54.3976
B10: 2 | C10: 北京华林特装车有限公司 | D10: 小计 | E10: 1 | G10: 10 | H10: 1 | J10: 10 | K10: =ROUND(J10,0) -> 10 | M10: 0 | N10: =M10 -> 0 | O10: =K10-N10 -> 10
D11: HLT5160TSLEV | E11: 1 | F11: 10 | G11: =E11*F11 -> 10 | H11: 1 | I11: 10 | J11: =H11*I11 -> 10
B12: 3 | C12: 北京汽车股份有限公司 | D12: 小计 | E12: 3203 | G12: 13170.17 | H12: 3052 | J12: 12569.12 | K12: =ROUND(J12,0) -> 12569 | M12: 1710 | N12: =M12 -> 1710 | O12: =K12-N12 -> 10859
D13: BJ5023XXYV3RK-BEV | E13: 154 | F13: 2.448 | G13: =E13*F13 -> 376.992 | H13: 154 | I13: 2.448 | J13: =H13*I13 -> 376.992
D14: BJ7000C5D3-BEV | E14: 483 | F14: 6.05 | G14: 2922.15 | H14: 474 | I14: 6.05 | J14: 2867.7 | L14: 核减9辆，原因为：车辆注册登记信息有误,需进一步核实后予以清算,需进一步核实后予以清算
D15: BJ7000C5E1-BEV | E15: 1 | F15: 2.52 | G15: 2.52 | H15: 1 | I15: 2.52 | J15: 2.52
D16: BJ7000C5E1-BEV | E16: 1 | F16: 4.4 | G16: 4.4 | H16: 1 | I16: 4.4 | J16: 4.4
D17: BJ7000C5E2-BEV | E17: 262 | F17: 3.08 | G17: 806.96 | H17: 255 | I17: 3.08 | J17: 785.4 | L17: 核减7辆，原因为：车辆注册登记信息有误,需进一步核实后予以清算,需进一步核实后予以清算
D18: BJ7000C5E2-BEV | E18: 1 | F18: 4.4 | G18: 4.4 | H18: 1 | I18: 4.4 | J18: 4.4
D19: BJ7000C5E4-BEV | E19: 26 | F19: 3.388 | G19: 88.088 | H19: 26 | I19: 3.388 | J19: 88.088
D20: BJ7000C5E4-BEV | E20: 402 | F20: 4.5 | G20: 1809 | H20: 376 | I20: 4.5 | J20: 1692 | L20: 核减26辆，原因为：需进一步核实后予以清算,需进一步核实后予以清算
D21: BJ7000C5E4-BEV | E21: 7 | F21: 4.84 | G21: 33.88 | H21: 6 | I21: 4.84 | J21: 29.04 | L21: 核减1辆，原因为：需进一步核实后予以清算
D22: BJ7000C5E7-BEV | E22: 13 | F22: 3.388 | G22: 44.044 | H22: 13 | I22: 3.388 | J22: 44.044
D23: BJ7000C5E7-BEV | E23: 591 | F23: 4.5 | G23: 2659.5 | H23: 535 | I23: 4.5 | J23: 2407.5 | L23: 核减56辆，原因为：车辆注册登记信息有误,需进一步核实后予以清算,需进一步核实后予以清算
D24: BJ7000C5E7-BEV | E24: 5 | F24: 4.84 | G24: 24.2 | H24: 5 | I24: 4.84 | J24: 24.2
D25: BJ7000C5E8-BEV | E25: 16 | F25: 4.5 | G25: 72 | H25: 16 | I25: 4.5 | J25: 72
D26: BJ7000C5E9-BEV | E26: 626 | F26: 2.7 | G26: 1690.2 | H26: 580 | I26: 2.7 | J26: 1566 | L26: 核减46辆，原因为：车辆注册登记信息有误,需进一步核实后予以清算,需进一步核实后予以清算
D27: BJ7000U3D7-BEV | E27: 122 | F27: 3.388 | G27: 413.336 | H27: 122 | I27: 3.388 | J27: 413.336
D28: BJ7000U3D7-BEV | E28: 493 | F28: 4.5 | G28: 2218.5 | H28: 487 | I28: 4.5 | J28: 2191.5 | L28: 核减6辆，原因为：需进一步核实后予以清算,需进一步核实后予以清算
B29: 4 | C29: 北京现代汽车有限公司 | D29: 小计 | E29: 37 | G29: 96.866 | H29: 37 | J29: 96.866 | K29: =ROUND(J29,0) -> 97 | M29: 0 | N29: =M29 -> 0 | O29: =K29-N29 -> 97
D30: BH7000BEVBA | E30: 14 | F30: 2.244 | G30: =E30*F30 -> 31.416 | H30: 14 | I30: 2.244 | J30: =H30*I30 -> 31.416
D31: BH7000BEVBA | E31: 2 | F31: 3.08 | G31: =E31*F31 -> 6.16 | H31: 2 | I31: 3.08 | J31: =H31*I31 -> 6.16
D32: BH7001BEVBA | E32: 17 | F32: 2.97 | G32: =E32*F32 -> 50.49 | H32: 17 | I32: 2.97 | J32: =H32*I32 -> 50.49
D33: BH7200PHEVRAV | E33: 4 | F33: 2.2 | G33: =E33*F33 -> 8.8 | H33: 4 | I33: 2.2 | J33: =H33*I33 -> 8.8
B34: 5 | C34: 北京新能源汽车股份有限公司 | D34: 小计 | E34: 15717 | G34: 47323.98 | H34: 0 | J34: 0 | K34: =ROUND(J34,0) -> 0 | M34: 0 | N34: =M34 -> 0 | O34: =K34-N34 -> 0
D35: BJ7001BPH1-BEV | E35: 115 | F35: 2.52 | G35: =E35*F35 -> 289.8 | H35: 0 | I35: 0 | J35: =H35*I35 -> 0 | L35: 核减115辆，原因为：车辆注册登记信息有误,现场核查不通过
D36: BJ7001BPH1-BEV | E36: 6 | F36: 3.6 | G36: 21.6 | H36: 0 | I36: 0 | J36: 0 | L36: 核减6辆，原因为：现场核查不通过
D37: BJ7001BPH5-BEV | E37: 457 | F37: 2.772 | G37: 1266.804 | H37: 0 | I37: 0 | J37: 0 | L37: 核减457辆，原因为：车辆注册登记信息有误,现场核查不通过
D38: BJ7001BPH5-BEV | E38: 63 | F38: 3.96 | G38: 249.48 | H38: 0 | I38: 0 | J38: 0 | L38: 核减63辆，原因为：现场核查不通过
D39: BJ7001BPH6-BEV | E39: 6414 | F39: 3.672 | G39: 23552.208 | H39: 0 | I39: 0 | J39: 0 | L39: 核减6414辆，原因为：车辆注册登记信息有误,现场核查不通过
D40: BJ7001BPH7-BEV | E40: 102 | F40: 2.772 | G40: 282.744 | H40: 0 | I40: 0 | J40: 0 | L40: 核减102辆，原因为：现场核查不通过
D41: BJ7001BPH7-BEV | E41: 7 | F41: 3.96 | G41: 27.72 | H41: 0 | I41: 0 | J41: 0 | L41: 核减7辆，原因为：现场核查不通过
D42: BJ7001BPH8-BEV | E42: 2270 | F42: 2.52 | G42: 5720.4 | H42: 0 | I42: 0 | J42: 0 | L42: 核减2270辆，原因为：车辆注册登记信息有误,现场核查不通过
D43: BJ7001BPH9-BEV | E43: 1 | F43: 1.5 | G43: 1.5 | H43: 0 | I43: 0 | J43: 0 | L43: 核减1辆，原因为：现场核查不通过
D44: BJ7001BPH9-BEV | E44: 2241 | F44: 2.772 | G44: 6212.052 | H44: 0 | I44: 0 | J44: 0 | L44: 核减2241辆，原因为：车辆注册登记信息有误,现场核查不通过
D45: BJ7001BPHA-BEV | E45: 4040 | F45: 2.4 | G45: 9696 | H45: 0 | I45: 0 | J45: 0 | L45: 核减4040辆，原因为：车辆注册登记信息有误,现场核查不通过
D46: BJ7001BPHB-BEV | E46: 1 | F46: 3.672 | G46: 3.672 | H46: 0 | I46: 0 | J46: 0 | L46: 核减1辆，原因为：现场核查不通过
A47: 天津市 | B47: 合计 | E47: 3 | G47: 59.4 | H47: 2 | J47: 39.6 | K47: =SUM(K48) -> 40 | M47: =SUM(M48) -> 0 | N47: =SUM(N48) -> 0 | O47: =SUM(O48) -> 40
B48: 1 | C48: 天津比亚迪汽车有限公司 | D48: 小计 | E48: 3 | G48: 59.4 | H48: 2 | J48: 39.6 | K48: =ROUND(J48,0) -> 40 | M48: 0 | N48: =M48 -> 0 | O48: =K48-N48 -> 40
D49: TJK6105BEV | E49: 3 | F49: 19.8 | G49: =E49*F49 -> 59.4 | H49: 2 | I49: 19.8 | J49: =H49*I49 -> 39.6 | L49: 核减1辆，原因为：车辆注册登记信息有误
A50: 河北省 | B50: 合计 | E50: 2285 | G50: 9038.1168 | H50: 2276 | J50: 9006.7443 | K50: =SUM(K51:K70) -> 9008 | M50: =SUM(M51:M70) -> 9626 | N50: =SUM(N51:N70) -> 998 | O50: =SUM(O51:O70) -> 8010
B51: 1 | C51: 长城汽车股份有限公司 | D51: 小计 | E51: 279 | G51: 702.1208 | H51: 276 | J51: 695.5208 | K51: =ROUND(J51,0) -> 696 | M51: 7915 | N51: =K51 -> 696 | O51: =K51-N51 -> 0
D52: CC6484AD21APHEV | E52: 3 | F52: 1.68 | G52: =E52*F52 -> 5.04 | H52: 3 | I52: 1.68 | J52: =H52*I52 -> 5.04
D53: CC6484AD21APHEV | E53: 229 | F53: 2.2 | G53: 503.8 | H53: 226 | I53: 2.2 | J53: 497.2 | L53: 核减3辆，原因为：车辆注册登记信息有误,需进一步核实后予以清算
D54: CC7000CE04BEV | E54: 8 | F54: 3.74 | G54: 29.92 | H54: 8 | I54: 3.74 | J54: 29.92
D55: CC7000ZM00ABEV | E55: 30 | F55: 3.96 | G55: 118.8 | H55: 30 | I55: 3.96 | J55: 118.8
D56: CC7000ZM01BEV | E56: 1 | F56: 3.684 | G56: 3.684 | H56: 1 | I56: 3.684 | J56: 3.684
D57: CC7001CE02ABEV | E57: 6 | F57: 4.95 | G57: 29.7 | H57: 6 | I57: 4.95 | J57: 29.7
D58: CC7001CE03BEV | E58: 2 | F58: 5.5884 | G58: 11.1768 | H58: 2 | I58: 5.5884 | J58: 11.1768
B59: 2 | C59: 河北长安汽车有限公司 | D59: 小计 | E59: 62 | G59: 306.9 | H59: 61 | J59: 301.95 | K59: =ROUND(J59,0) -> 302 | M59: 1711 | N59: =K59 -> 302 | O59: =K59-N59 -> 0
D60: SC6443NBEV | E60: 2 | F60: 4.95 | G60: =E60*F60 -> 9.9 | H60: 2 | I60: 4.95 | J60: =H60*I60 -> 9.9
D61: SC6459ABEV | E61: 60 | F61: 4.95 | G61: =E61*F61 -> 297 | H61: 59 | I61: 4.95 | J61: =H61*I61 -> 292.05 | L61: 核减1辆，原因为：现场核查不通过
B62: 3 | C62: 河北红星汽车制造有限公司 | D62: 小计 | E62: 62 | G62: 233.132 | H62: 62 | J62: 233.132 | K62: =ROUND(J62,0) -> 233 | M62: 0 | N62: =M62 -> 0 | O62: =K62-N62 -> 233
D63: HX5021XXYVEV | E63: 1 | F63: 4.992 | G63: =E63*F63 -> 4.992 | H63: 1 | I63: 4.992 | J63: =H63*I63 -> 4.992
D64: HX6340BBEV | E64: 61 | F64: 3.74 | G64: =E64*F64 -> 228.14 | H64: 61 | I64: 3.74 | J64: =H64*I64 -> 228.14
B65: 4 | C65: 河北中兴汽车制造有限公司 | D65: 小计 | E65: 439 | G65: 1541.684 | H65: 436 | J65: 1530.5315 | K65: =ROUND(J65,0) -> 1531 | M65: 0 | N65: =M65 -> 0 | O65: =K65-N65 -> 1531
D66: BQ1030E1BEV | E66: 4 | F66: 2.496 | G66: =E66*F66 -> 9.984 | H66: 4 | I66: 2.496 | J66: =H66*I66 -> 9.984
D67: BQ1030E2BEV | E67: 6 | F67: 3.148 | G67: =E67*F67 -> 18.888 | H67: 5 | I67: 3.148 | J67: =H67*I67 -> 15.74 | L67: 核减1辆，原因为：不符合行驶里程数要求
D68: BQ1030E2V1BEV | E68: 64 | F68: 4.6805 | G68: =E68*F68 -> 299.552 | H68: 63 | I68: 4.6805 | J68: =H68*I68 -> 294.8715 | L68: 核减1辆，原因为：车辆注册登记信息有误
D69: BQ5031XXYHBEV | E69: 365 | F69: 3.324 | G69: =E69*F69 -> 1213.26 | H69: 364 | I69: 3.324 | J69: =H69*I69 -> 1209.936 | L69: 核减1辆，原因为：车辆注册登记信息有误
B70: 5 | C70: 领途汽车有限公司 | D70: 小计 | E70: 1443 | G70: 6254.28 | H70: 1441 | J70: 6245.61 | K70: =ROUND(J70,0) -> 6246 | M70: 0 | N70: =M70 -> 0 | O70: =K70-N70 -> 6246
D71: YGM6371BEV | E71: 3 | F71: 3.96 | G71: =E71*F71 -> 11.88 | H71: 3 | I71: 3.96 | J71: =H71*I71 -> 11.88
D72: YGM7000BEVA4 | E72: 1440 | F72: 4.335 | G72: =E72*F72 -> 6242.4 | H72: 1438 | I72: 4.335 | J72: =H72*I72 -> 6233.73 | L72: 核减2辆，原因为：车辆注册登记信息有误,现场核查不通过
A73: 山西省 | B73: 合计 | E73: 1666 | G73: 7208.7684 | H73: 1509 | J73: 6521.856804 | K73: =SUM(K74:K116) -> 6522 | M73: =SUM(M74:M116) -> 8051 | N73: =SUM(N74:N116) -> 1095 | O73: =SUM(O74:O116) -> 5427
B74: 1 | C74: 成都大运汽车集团有限公司 | D74: 小计 | E74: 615 | G74: 3729.6789 | H74: 613 | J74: 3717.340954 | K74: =ROUND(J74,0) -> 3717 | M74: 0 | N74: =M74 -> 0 | O74: =K74-N74 -> 3717
D75: CGC1044BEV1AABJEAHY | E75: 1 | F75: 8.4 | G75: =E75*F75 -> 8.4 | H75: 1 | I75: 8.4 | J75: =H75*I75 -> 8.4
D76: CGC4250BEV1Z1 | E76: 12 | F76: 6 | G76: 72 | H76: 12 | I76: 6 | J76: 72
D77: CGC4250BEV1Z1 | E77: 8 | F77: 15 | G77: 120 | H77: 8 | I77: 15 | J77: 120
D78: CGC5025XXYBEV1NBBFBAXY | E78: 1 | F78: 2.4106 | G78: 2.4106 | H78: 1 | I78: 2.41056 | J78: 2.41056
D79: CGC5025XXYBEV1NBBFBAXY | E79: 14 | F79: 6.0264 | G79: 84.3696 | H79: 14 | I79: 6.0264 | J79: 84.3696
D80: CGC5040XXYBEV1CAH0 | E80: 12 | F80: 3.36 | G80: 40.32 | H80: 12 | I80: 3.36 | J80: 40.32
D81: CGC5040XXYBEV1ZAH0 | E81: 18 | F81: 3.36 | G81: 60.48 | H81: 18 | I81: 3.36 | J81: 60.48
D82: CGC5044XXYBEV1AAAJEAGK | E82: 2 | F82: 2.5661 | G82: 5.1322 | H82: 2 | I82: 2.56608 | J82: 5.13216
D83: CGC5044XXYBEV1AAAJEAGK | E83: 1 | F83: 6.4152 | G83: 6.4152 | H83: 1 | I83: 6.4152 | J83: 6.4152
D84: CGC5044XXYBEV1AAAJEAHZ | E84: 49 | F84: 2.5661 | G84: 125.7389 | H84: 49 | I84: 2.56608 | J84: 125.73792
D85: CGC5044XXYBEV1AAAJEAHZ | E85: 215 | F85: 6.4152 | G85: 1379.268 | H85: 215 | I85: 6.4152 | J85: 1379.268
D86: CGC5044XXYBEV1NBLJEAGY | E86: 1 | F86: 3.856 | G86: 3.856 | H86: 1 | I86: 3.856 | J86: 3.856
D87: CGC5044XXYBEV1NBLJEAGY | E87: 8 | F87: 9.64 | G87: 77.12 | H87: 8 | I87: 9.64 | J87: 77.12
D88: CGC5045XLCBEV1Z2 | E88: 2 | F88: 6.158 | G88: 12.316 | H88: 2 | I88: 6.15795 | J88: 12.3159
D89: CGC5045XLCBEV1Z3 | E89: 10 | F89: 7.0901 | G89: 70.901 | H89: 10 | I89: 7.09005 | J89: 70.9005
D90: CGC5045XXYBEV1Z10 | E90: 10 | F90: 6.158 | G90: 61.58 | H90: 10 | I90: 6.15795 | J90: 61.5795
D91: CGC5045XXYBEV1Z12 | E91: 1 | F91: 6.158 | G91: 6.158 | H91: 1 | I91: 6.15795 | J91: 6.15795
D92: CGC5045XXYBEV1Z13 | E92: 15 | F92: 6.158 | G92: 92.37 | H92: 14 | I92: 6.15795 | J92: 86.2113 | L92: 核减1辆，原因为：车辆注册登记信息有误
D93: CGC5045XXYBEV1Z4 | E93: 122 | F93: 6.158 | G93: 751.276 | H93: 122 | I93: 6.15795 | J93: 751.2699
D94: CGC5045XXYBEV1Z5 | E94: 23 | F94: 7.0901 | G94: 163.0723 | H94: 23 | I94: 7.09005 | J94: 163.07115
D95: CGC5045XXYBEV1Z7 | E95: 54 | F95: 6.158 | G95: 332.532 | H95: 53 | I95: 6.15795 | J95: 326.37135 | L95: 核减1辆，原因为：车辆注册登记信息有误
D96: CGC5045XXYBEV1Z9 | E96: 1 | F96: 7.0901 | G96: 7.0901 | H96: 1 | I96: 7.09005 | J96: 7.09005
D97: CGC5045XXYBEV2Z2 | E97: 32 | F97: 5.8427 | G97: 186.9664 | H97: 32 | I97: 5.8424192 | J97: 186.9574144
D98: CGC6801BEV1K2 | E98: 1 | F98: 19.9066 | G98: 19.9066 | H98: 1 | I98: 19.9065 | J98: 19.9065
D99: CGC6806BEV1QACJHACM | E99: 1 | F99: 20 | G99: 20 | H99: 1 | I99: 20 | J99: 20
D100: CGC6851BEV1K1 | E100: 1 | F100: 20 | G100: 20 | H100: 1 | I100: 20 | J100: 20
B101: 2 | C101: 大运汽车股份有限公司 | D101: 小计 | E101: 1 | G101: 6.6923 | H101: 1 | J101: 6.69225 | K101: =ROUND(J101,0) -> 7 | M101: 0 | N101: =M101 -> 0 | O101: =K101-N101 -> 7
D102: DYX5044XXYBEV1DBNLQAGK | E102: 1 | F102: 6.6923 | G102: =E102*F102 -> 6.6923 | H102: 1 | I102: 6.69225 | J102: =H102*I102 -> 6.69225
B103: 3 | C103: 山西成功汽车制造有限公司 | D103: 小计 | E103: 896 | G103: 2767.0372 | H103: 893 | J103: 2758.2236 | K103: =ROUND(J103,0) -> 2758 | M103: 1055 | N103: =M103 -> 1055 | O103: =K103-N103 -> 1703
D104: SCH5022XXY-BEV1 | E104: 3 | F104: 2.1792 | G104: =E104*F104 -> 6.5376 | H104: 3 | I104: 2.1792 | J104: =H104*I104 -> 6.5376
D105: SCH5022XXY-BEV1 | E105: 6 | F105: 5.448 | G105: 32.688 | H105: 6 | I105: 5.448 | J105: 32.688
D106: SCH5022XXY-BEV5 | E106: 1 | F106: 5.448 | G106: 5.448 | H106: 1 | I106: 5.448 | J106: 5.448
D107: SCH5022XXY-BEV8 | E107: 160 | F107: 2.2301 | G107: 356.816 | H107: 160 | I107: 2.23008 | J107: 356.8128
D108: SCH5022XXY-BEV8 | E108: 57 | F108: 5.5752 | G108: 317.7864 | H108: 57 | I108: 5.5752 | J108: 317.7864
D109: SCH5022XXY-BEV9 | E109: 132 | F109: 2.3664 | G109: 312.3648 | H109: 131 | I109: 2.3664 | J109: 309.9984 | L109: 核减1辆，原因为：车辆注册登记信息有误
D110: SCH5022XXY-BEVC | E110: 531 | F110: 3.222 | G110: 1710.882 | H110: 529 | I110: 3.222 | J110: 1704.438 | L110: 核减2辆，原因为：车辆注册登记信息有误
D111: SCH5025XXYD-BEV4 | E111: 2 | F111: 3.5722 | G111: 7.1444 | H111: 2 | I111: 3.5722 | J111: 7.1444
D112: SCH6431BEV | E112: 1 | F112: 2.52 | G112: 2.52 | H112: 1 | I112: 2.52 | J112: 2.52
D113: SCH6431BEV1 | E113: 3 | F113: 4.95 | G113: 14.85 | H113: 3 | I113: 4.95 | J113: 14.85
B114: 4 | C114: 山西皇城相府宇航汽车制造有限公司 | D114: 小计 | E114: 152 | G114: 665.76 | H114: 0 | J114: 0 | K114: =ROUND(J114,0) -> 0 | M114: 0 | N114: =M114 -> 0 | O114: =K114-N114 -> 0
D115: SXK5031XXYBEV | E115: 152 | F115: 4.38 | G115: =E115*F115 -> 665.76 | H115: 0 | I115: 0 | J115: =H115*I115 -> 0 | L115: 核减152辆，原因为：不符合行驶里程数要求,车辆注册登记信息有误,现场核查不通过
B116: 5 | C116: 山西新能源汽车工业有限公司 | D116: 小计 | E116: 2 | G116: 39.6 | H116: 2 | J116: 39.6 | K116: =ROUND(J116,0) -> 40 | M116: 6996 | N116: =K116 -> 40 | O116: =K116-N116 -> 0
D117: JHC6120BEVG4 | E117: 2 | F117: 19.8 | G117: =E117*F117 -> 39.6 | H117: 2 | I117: 19.8 | J117: =H117*I117 -> 39.6
A118: 内蒙古自治区 | B118: 合计 | E118: 2 | G118: 60 | H118: 1 | J118: 30 | K118: =SUM(K119) -> 30 | M118: =SUM(M119) -> 327 | N118: =SUM(N119) -> 30 | O118: =SUM(O119) -> 0
B119: 1 | C119: 北奔重型汽车集团有限公司 | D119: 小计 | E119: 2 | G119: 60 | H119: 1 | J119: 30 | K119: =ROUND(J119,0) -> 30 | M119: 327 | N119: =K119 -> 30 | O119: =K119-N119 -> 0
D120: ND6102BEV00 | E120: 1 | F120: 30 | G120: =E120*F120 -> 30 | H120: 0 | I120: 0 | J120: =H120*I120 -> 0 | L120: 核减1辆，原因为：不符合行驶里程数要求
D121: ND6111LEV00 | E121: 1 | F121: 30 | G121: =E121*F121 -> 30 | H121: 1 | I121: 30 | J121: =H121*I121 -> 30
A122: 辽宁省 | B122: 合计 | E122: 349 | G122: 1528.71 | H122: 348 | J122: 1527.61 | K122: =SUM(K123:K133) -> 1527 | M122: =SUM(M123:M133) -> 2595 | N122: =SUM(N123:N133) -> 1205 | O122: =SUM(O123:O133) -> 322
B123: 1 | C123: 丹东黄海汽车有限责任公司 | D123: 小计 | E123: 96 | G123: 1205.17 | H123: 96 | J123: 1205.17 | K123: =ROUND(J123,0) -> 1205 | M123: 2595 | N123: =K123 -> 1205 | O123: =K123-N123 -> 0
D124: DD6100EV4 | E124: 20 | F124: 21.78 | G124: =E124*F124 -> 435.6 | H124: 20 | I124: 21.78 | J124: =H124*I124 -> 435.6
D125: DD6109SHEV2N | E125: 7 | F125: 5.355 | G125: 37.485 | H125: 7 | I125: 5.355 | J125: 37.485
D126: DD6120CHEV2N | E126: 3 | F126: 5.355 | G126: 16.065 | H126: 3 | I126: 5.355 | J126: 16.065
D127: DD6120CHEV3N | E127: 2 | F127: 7.5 | G127: 15 | H127: 2 | I127: 7.5 | J127: 15
D128: DD6120CHEV3N | E128: 22 | F128: 10.5 | G128: 231 | H128: 22 | I128: 10.5 | J128: 231
D129: DD6129EV19 | E129: 10 | F129: 19.8 | G129: 198 | H129: 10 | I129: 19.8 | J129: 198
D130: DD6129PHEV1N | E130: 18 | F130: 4.05 | G130: 72.9 | H130: 18 | I130: 4.05 | J130: 72.9
D131: DD6800EV1 | E131: 8 | F131: 14 | G131: 112 | H131: 8 | I131: 14 | J131: 112
D132: DD6851EV5 | E132: 6 | F132: 14.52 | G132: 87.12 | H132: 6 | I132: 14.52 | J132: 87.12
B133: 2 | C133: 华晨宝马汽车有限公司 | D133: 小计 | E133: 253 | G133: 323.54 | H133: 252 | J133: 322.44 | K133: =ROUND(J133,0) -> 322 | M133: 0 | N133: =M133 -> 0 | O133: =K133-N133 -> 322
D134: BMW6462AAHEV(BMWX1) | E134: 35 | F134: 1.1 | G134: =E134*F134 -> 38.5 | H134: 35 | I134: 1.1 | J134: =H134*I134 -> 38.5
D135: BMW6462AAHEV(BMWX1) | E135: 4 | F135: 1.68 | G135: =E135*F135 -> 6.72 | H135: 4 | I135: 1.68 | J135: =H135*I135 -> 6.72
D136: BMW7201BMHEV | E136: 62 | F136: 1.68 | G136: =E136*F136 -> 104.16 | H136: 62 | I136: 1.68 | J136: =H136*I136 -> 104.16
D137: BMW7201CMHEV | E137: 140 | F137: 1.1 | G137: =E137*F137 -> 154 | H137: 139 | I137: 1.1 | J137: =H137*I137 -> 152.9 | L137: 核减1辆，原因为：车辆注册登记信息有误
D138: BMW7201CMHEV | E138: 12 | F138: 1.68 | G138: =E138*F138 -> 20.16 | H138: 12 | I138: 1.68 | J138: =H138*I138 -> 20.16
A139: 大连市 | B139: 合计 | E139: 570 | G139: 2933.406 | H139: 39 | J139: 702 | K139: =SUM(K140:K144) -> 702 | M139: =SUM(M140:M144) -> 2464 | N139: =SUM(N140:N144) -> 0 | O139: =SUM(O140:O144) -> 702
B140: 1 | C140: 大连氢锋客车有限公司 | D140: 小计 | E140: 530 | G140: 2213.406 | H140: 0 | J140: 0 | K140: =ROUND(J140,0) -> 0 | M140: 2464 | N140: =K140 -> 0 | O140: =K140-N140 -> 0
D141: CA5020XXYBEV31 | E141: 196 | F141: 2.472 | G141: =E141*F141 -> 484.512 | H141: 0 | I141: 0 | J141: =H141*I141 -> 0 | L141: 核减196辆，原因为：车辆注册登记信息有误,现场核查不通过
D142: CA5020XXYBEV32 | E142: 52 | F142: 2.472 | G142: =E142*F142 -> 128.544 | H142: 0 | I142: 0 | J142: =H142*I142 -> 0 | L142: 核减52辆，原因为：现场核查不通过
D143: CA5040XXYBEV31 | E143: 282 | F143: 5.675 | G143: =E143*F143 -> 1600.35 | H143: 0 | I143: 0 | J143: =H143*I143 -> 0 | L143: 核减282辆，原因为：车辆注册登记信息有误,现场核查不通过
B144: 2 | C144: 华晨客车(大连)有限公司 | D144: 小计 | E144: 40 | G144: 720 | H144: 39 | J144: 702 | K144: =ROUND(J144,0) -> 702 | M144: 0 | N144: =M144 -> 0 | O144: =K144-N144 -> 702
D145: WK6101UREV1 | E145: 40 | F145: 18 | G145: =E145*F145 -> 720 | H145: 39 | I145: 18 | J145: =H145*I145 -> 702 | L145: 核减1辆，原因为：不符合行驶里程数要求
A146: 吉林省 | B146: 合计 | E146: 435 | G146: 1533.761 | H146: 240 | J146: 1209.161 | K146: =SUM(K147:K153) -> 1209 | M146: =SUM(M147:M153) -> 27543 | N146: =SUM(N147:N153) -> 35 | O146: =SUM(O147:O153) -> 1174
B147: 1 | C147: 一汽吉林汽车有限公司 | D147: 小计 | E147: 235 | G147: 1194.5942 | H147: 231 | J147: 1174.1942 | K147: =ROUND(J147,0) -> 1174 | M147: 0 | N147: =M147 -> 0 | O147: =K147-N147 -> 1174
D148: CA5020XXYEVH3 | E148: 2 | F148: 3.27 | G148: =E148*F148 -> 6.54 | H148: 2 | I148: 3.27 | J148: =H148*I148 -> 6.54
D149: CA5027ZXXAEVD1 | E149: 1 | F149: 1.562 | G149: =E149*F149 -> 1.562 | H149: 1 | I149: 1.562 | J149: =H149*I149 -> 1.562
D150: CA5027ZXXAEVD1 | E150: 1 | F150: 3.9072 | G150: =E150*F150 -> 3.9072 | H150: 1 | I150: 3.9072 | J150: =H150*I150 -> 3.9072
D151: CA6420EVK3 | E151: 218 | F151: 5.1 | G151: =E151*F151 -> 1111.8 | H151: 214 | I151: 5.1 | J151: =H151*I151 -> 1091.4 | L151: 核减4辆，原因为：现场核查不通过
D152: CA7007REVZX | E152: 13 | F152: 5.445 | G152: =E152*F152 -> 70.785 | H152: 13 | I152: 5.445 | J152: =H152*I152 -> 70.785
B153: 2 | C153: 中国第一汽车集团有限公司 | D153: 小计 | E153: 200 | G153: 339.1668 | H153: 9 | J153: 34.9668 | K153: =ROUND(J153,0) -> 35 | M153: 27543 | N153: =K153 -> 35 | O153: =K153-N153 -> 0
D154: CA5030XXYBEV21 | E154: 6 | F154: 3.72 | G154: =E154*F154 -> 22.32 | H154: 6 | I154: 3.72 | J154: =H154*I154 -> 22.32
D155: CA7001BEV | E155: 3 | F155: 4.2156 | G155: =E155*F155 -> 12.6468 | H155: 3 | I155: 4.2156 | J155: =H155*I155 -> 12.6468
D156: CA7001EVA | E156: 165 | F156: 1.44 | G156: =E156*F156 -> 237.6 | H156: 0 | I156: 0 | J156: =H156*I156 -> 0 | L156: 核减165辆，原因为：电池系统能量密度与推荐目录参数不一致,未按有关要求上传车辆运行数据
D157: CA7001EVA | E157: 25 | F157: 2.52 | G157: =E157*F157 -> 63 | H157: 0 | I157: 0 | J157: =H157*I157 -> 0 | L157: 核减25辆，原因为：电池系统能量密度与推荐目录参数不一致
D158: CA7001EVA | E158: 1 | F158: 3.6 | G158: =E158*F158 -> 3.6 | H158: 0 | I158: 0 | J158: =H158*I158 -> 0 | L158: 核减1辆，原因为：电池系统能量密度与推荐目录参数不一致
A159: 黑龙江省 | B159: 合计 | E159: 106 | G159: 600.5236 | H159: 98 | J159: 575.9 | K159: =SUM(K160:K165) -> 576 | M159: =SUM(M160:M165) -> 0 | N159: =SUM(N160:N165) -> 0 | O159: =SUM(O160:O165) -> 576
B160: 1 | C160: 大庆沃尔沃汽车制造有限公司 | D160: 小计 | E160: 42 | G160: 92.4 | H160: 36 | J160: 79.2 | K160: =ROUND(J160,0) -> 79 | M160: 0 | N160: =M160 -> 0 | O160: =K160-N160 -> 79
D161: VCD7204C31PPHEV | E161: 30 | F161: 2.2 | G161: =E161*F161 -> 66 | H161: 27 | I161: 2.2 | J161: =H161*I161 -> 59.4 | L161: 核减3辆，原因为：不符合行驶里程数要求
D162: VCD7204H21PHEV | E162: 12 | F162: 2.2 | G162: =E162*F162 -> 26.4 | H162: 9 | I162: 2.2 | J162: =H162*I162 -> 19.8 | L162: 核减3辆，原因为：不符合行驶里程数要求
B163: 2 | C163: 哈尔滨龙江客车制造有限公司 | D163: 小计 | E163: 1 | G163: 5.1236 | H163: 0 | J163: 0 | K163: =ROUND(J163,0) -> 0 | M163: 0 | N163: =M163 -> 0 | O163: =K163-N163 -> 0
D164: LJK5040XXYDEV1 | E164: 1 | F164: 5.1236 | G164: =E164*F164 -> 5.1236 | H164: 0 | I164: 0 | J164: =H164*I164 -> 0 | L164: 核减1辆，原因为：未按有关要求上传车辆运行数据
B165: 3 | C165: 哈尔滨通联客车有限公司 | D165: 小计 | E165: 63 | G165: 503 | H165: 62 | J165: 496.7 | K165: =ROUND(J165,0) -> 497 | M165: 0 | N165: =M165 -> 0 | O165: =K165-N165 -> 497
D166: HKC6681BEV | E166: 50 | F166: 6.3 | G166: =E166*F166 -> 315 | H166: 49 | I166: 6.3 | J166: =H166*I166 -> 308.7 | L166: 核减1辆，原因为：现场核查不通过
D167: HKC6810BEV01 | E167: 12 | F167: 14 | G167: =E167*F167 -> 168 | H167: 12 | I167: 14 | J167: =H167*I167 -> 168
D168: HKC6810BEV01 | E168: 1 | F168: 20 | G168: =E168*F168 -> 20 | H168: 1 | I168: 20 | J168: =H168*I168 -> 20
A169: 上海市 | B169: 合计 | E169: 2435 | G169: 12481.5007 | H169: 2389 | J169: 12305.5257 | K169: =SUM(K170:K209) -> 12305 | M169: =SUM(M170:M209) -> 17609 | N169: =SUM(N170:N209) -> 7278 | O169: =SUM(O170:O209) -> 5027
B170: 1 | C170: 上海汽车集团股份有限公司 | D170: 小计 | E170: 1874 | G170: 7256.796 | H170: 1840 | J170: 7139.826 | K170: =ROUND(J170,0) -> 7140 | M170: 17471 | N170: =K170 -> 7140 | O170: =K170-N170 -> 0
D171: CSA6454NDPHEV1 | E171: 16 | F171: 1.1 | G171: =E171*F171 -> 17.6 | H171: 16 | I171: 1.1 | J171: =H171*I171 -> 17.6
D172: CSA6454NDPHEV1 | E172: 14 | F172: 1.68 | G172: 23.52 | H172: 12 | I172: 1.68 | J172: 20.16 | L172: 核减2辆，原因为：车辆注册登记信息有误
D173: CSA6454NDPHEV1 | E173: 4 | F173: 2.4 | G173: 9.6 | H173: 4 | I173: 2.4 | J173: 9.6
D174: CSA6454NDPHEV2 | E174: 41 | F174: 2.2 | G174: 90.2 | H174: 39 | I174: 2.2 | J174: 85.8 | L174: 核减2辆，原因为：车辆注册登记信息有误
D175: CSA6456BEV1 | E175: 24 | F175: 3.388 | G175: 81.312 | H175: 24 | I175: 3.388 | J175: 81.312
D176: CSA6456BEV1 | E176: 24 | F176: 4.84 | G176: 116.16 | H176: 24 | I176: 4.84 | J176: 116.16
D177: CSA6456BEV1 | E177: 148 | F177: 4.95 | G177: 732.6 | H177: 147 | I177: 4.95 | J177: 727.65 | L177: 核减1辆，原因为：需进一步核实后予以清算
D178: CSA6456BEV2 | E178: 72 | F178: 4.95 | G178: 356.4 | H178: 72 | I178: 4.95 | J178: 356.4
D179: CSA6461FBEV1 | E179: 28 | F179: 6.05 | G179: 169.4 | H179: 27 | I179: 6.05 | J179: 163.35 | L179: 核减1辆，原因为：车辆注册登记信息有误
D180: CSA6461FBEV2 | E180: 14 | F180: 4.95 | G180: 69.3 | H180: 13 | I180: 4.95 | J180: 64.35 | L180: 核减1辆，原因为：车辆注册登记信息有误
D181: CSA7002FBEV1 | E181: 8 | F181: 3.388 | G181: 27.104 | H181: 8 | I181: 3.388 | J181: 27.104
D182: CSA7002FBEV1 | E182: 1163 | F182: 4.2 | G182: 4884.6 | H182: 1144 | I182: 4.2 | J182: 4804.8 | L182: 核减19辆，原因为：车辆注册登记信息有误,需进一步核实后予以清算
D183: CSA7002FBEV3 | E183: 2 | F183: 6.05 | G183: 12.1 | H183: 2 | I183: 6.05 | J183: 12.1
D184: CSA7102SDPHEV | E184: 10 | F184: 1.68 | G184: 16.8 | H184: 9 | I184: 1.68 | J184: 15.12 | L184: 核减1辆，原因为：车辆注册登记信息有误
D185: CSA7102SDPHEV | E185: 8 | F185: 2.2 | G185: 17.6 | H185: 8 | I185: 2.2 | J185: 17.6
D186: CSA7104SDPHEV1 | E186: 13 | F186: 1.1 | G186: 14.3 | H186: 10 | I186: 1.1 | J186: 11 | L186: 核减3辆，原因为：车辆注册登记信息有误
D187: CSA7104SDPHEV1 | E187: 16 | F187: 1.68 | G187: 26.88 | H187: 15 | I187: 1.68 | J187: 25.2 | L187: 核减1辆，原因为：车辆注册登记信息有误
D188: CSA7104SDPHEV1 | E188: 7 | F188: 2.4 | G188: 16.8 | H188: 6 | I188: 2.4 | J188: 14.4 | L188: 核减1辆，原因为：车辆注册登记信息有误
D189: CSA7104SDPHEV3 | E189: 199 | F189: 2.2 | G189: 437.8 | H189: 197 | I189: 2.2 | J189: 433.4 | L189: 核减2辆，原因为：车辆注册登记信息有误
D190: CSA7144CDPHEV1 | E190: 4 | F190: 1.68 | G190: 6.72 | H190: 4 | I190: 1.68 | J190: 6.72
D191: CSA7144CDPHEV1 | E191: 1 | F191: 2.4 | G191: 2.4 | H191: 1 | I191: 2.4 | J191: 2.4
D192: CSA7144CDPHEV2 | E192: 58 | F192: 2.2 | G192: 127.6 | H192: 58 | I192: 2.2 | J192: 127.6
B193: 2 | C193: 上海申龙客车有限公司 | D193: 小计 | E193: 189 | G193: 3185.2492 | H193: 189 | J193: 3185.2492 | K193: =ROUND(J193,0) -> 3185 | M193: 0 | N193: =M193 -> 0 | O193: =K193-N193 -> 3185
D194: SLK5030XXYBEV1 | E194: 1 | F194: 3.7747 | G194: =E194*F194 -> 3.7747 | H194: 1 | I194: 3.7747 | J194: =H194*I194 -> 3.7747
D195: SLK5032XXYBEV1 | E195: 10 | F195: 3.1425 | G195: 31.425 | H195: 10 | I195: 3.1425 | J195: 31.425
D196: SLK5032XXYBEV3 | E196: 5 | F196: 3.3525 | G196: 16.7625 | H196: 5 | I196: 3.3525 | J196: 16.7625
D197: SLK5042XXYBEV | E197: 1 | F197: 5.9815 | G197: 5.9815 | H197: 1 | I197: 5.9815 | J197: 5.9815
D198: SLK5046XXYBEV | E198: 15 | F198: 5.5697 | G198: 83.5455 | H198: 15 | I198: 5.5697 | J198: 83.5455
D199: SLK6108ABEVW1 | E199: 32 | F199: 19.8 | G199: 633.6 | H199: 32 | I199: 19.8 | J199: 633.6
D200: SLK6109UBEVL5 | E200: 8 | F200: 21.78 | G200: 174.24 | H200: 8 | I200: 21.78 | J200: 174.24
... 746 more rows
